[Event "*** SCC Grand Prix: Titled Tuesday Blitz"]
[Site "Chess.com"]
[Date "2020.07.07"]
[Round "6"]
[White "Jumbo"]
[Black "ehrenfeld"]
[Result "1/2-1/2"]
[WhiteElo "2870"]
[BlackElo "2526"]
[TimeControl "180+1"]
[EndTime "11:08:00 PDT"]
[Termination "Game drawn - insufficient material"]

1. e4 {[%clk 0:03:00.9]} 1... e5 {[%clk 0:02:59.2]} 2. Nf3 {[%clk 0:03:00.9]}
2... Nc6 {[%clk 0:02:59.2]} 3. Bb5 {[%clk 0:03:01]} 3... a6 {[%clk 0:02:59.3]}
4. Ba4 {[%clk 0:03:01.3]} 4... Nf6 {[%clk 0:02:59.6]} 5. O-O {[%clk 0:02:59.9]}
5... Be7 {[%clk 0:02:59.1]} 6. Re1 {[%clk 0:02:57.9]} 6... b5 {[%clk 0:02:58.9]}
7. Bb3 {[%clk 0:02:57.5]} 7... d6 {[%clk 0:02:59.2]} 8. a4 {[%clk 0:02:52.3]}
8... Bd7 {[%clk 0:02:58.2]} 9. d3 {[%clk 0:02:52]} 9... O-O {[%clk 0:02:56]} 10.
Bd2 {[%clk 0:02:52.4]} 10... b4 {[%clk 0:02:32.4]} 11. a5 {[%clk 0:02:48.7]}
11... Rb8 {[%clk 0:02:29.7]} 12. Bc4 {[%clk 0:02:48.6]} 12... Qc8 {[%clk
0:02:28.4]} 13. h3 {[%clk 0:02:48.6]} 13... Be6 {[%clk 0:02:20.2]} 14. c3 {[%clk
0:02:46.2]} 14... Bxc4 {[%clk 0:02:19]} 15. dxc4 {[%clk 0:02:47.1]} 15... Nd7
{[%clk 0:01:43.3]} 16. cxb4 {[%clk 0:02:01.8]} 16... Nxb4 {[%clk 0:01:42.8]} 17.
Re3 {[%clk 0:02:02.3]} 17... c5 {[%clk 0:01:25.7]} 18. Nc3 {[%clk 0:02:00.1]}
18... Nc6 {[%clk 0:01:22]} 19. Nd5 {[%clk 0:01:39.2]} 19... Bd8 {[%clk
0:01:21.7]} 20. Bc3 {[%clk 0:01:36.1]} 20... Qb7 {[%clk 0:01:03.7]} 21. Nd2
{[%clk 0:01:10.7]} 21... Nf6 {[%clk 0:01:00]} 22. Rd3 {[%clk 0:01:09.8]} 22...
Nd4 {[%clk 0:00:53.7]} 23. Nxf6+ {[%clk 0:01:00.3]} 23... Bxf6 {[%clk
0:00:53.1]} 24. Qg4 {[%clk 0:00:58.5]} 24... Qc8 {[%clk 0:00:45.7]} 25. Kf1
{[%clk 0:00:35]} 25... g6 {[%clk 0:00:41.9]} 26. g3 {[%clk 0:00:29]} 26... Bg7
{[%clk 0:00:39.8]} 27. Qxc8 {[%clk 0:00:28.9]} 27... Rfxc8 {[%clk 0:00:39.1]}
28. h4 {[%clk 0:00:27.2]} 28... Bh6 {[%clk 0:00:35.5]} 29. Rd1 {[%clk
0:00:17.6]} 29... Bxd2 {[%clk 0:00:34.2]} 30. R1xd2 {[%clk 0:00:17.1]} 30... Rb7
{[%clk 0:00:31.7]} 31. f4 {[%clk 0:00:16.8]} 31... f6 {[%clk 0:00:31]} 32. Kg2
{[%clk 0:00:16.8]} 32... Kf7 {[%clk 0:00:30.8]} 33. Kh3 {[%clk 0:00:16.6]} 33...
Ke6 {[%clk 0:00:30.7]} 34. Rf2 {[%clk 0:00:17.1]} 34... h5 {[%clk 0:00:28.9]}
35. Re3 {[%clk 0:00:17.2]} 35... Rcb8 {[%clk 0:00:27]} 36. g4 {[%clk 0:00:17]}
36... hxg4+ {[%clk 0:00:26.4]} 37. Kxg4 {[%clk 0:00:17.9]} 37... Rh7 {[%clk
0:00:22.6]} 38. fxe5 {[%clk 0:00:16.1]} 38... dxe5 {[%clk 0:00:21]} 39. Rh3
{[%clk 0:00:15.7]} 39... f5+ {[%clk 0:00:20.5]} 40. Kg3 {[%clk 0:00:15]} 40...
Rbh8 {[%clk 0:00:17.6]} 41. Rfh2 {[%clk 0:00:12.1]} 41... Rh5 {[%clk 0:00:16.7]}
42. Rf2 {[%clk 0:00:10.5]} 42... f4+ {[%clk 0:00:15.2]} 43. Kg4 {[%clk 0:00:10]}
43... g5 {[%clk 0:00:15.1]} 44. Rfh2 {[%clk 0:00:10.2]} 44... Rxh4+ {[%clk
0:00:14.6]} 45. Rxh4 {[%clk 0:00:10.2]} 45... gxh4 {[%clk 0:00:14.4]} 46. Rxh4
{[%clk 0:00:10.1]} 46... Rxh4+ {[%clk 0:00:13.5]} 47. Kxh4 {[%clk 0:00:10]}
47... Ne2 {[%clk 0:00:11]} 48. Bd2 {[%clk 0:00:10]} 48... Ng3 {[%clk 0:00:08.7]}
49. b4 {[%clk 0:00:05.9]} 49... cxb4 {[%clk 0:00:08.4]} 50. Bxb4 {[%clk
0:00:05.5]} 50... Nxe4 {[%clk 0:00:08.9]} 51. Kg4 {[%clk 0:00:04.5]} 51... Nd6
{[%clk 0:00:08.5]} 52. c5 {[%clk 0:00:04.7]} 52... Nb5 {[%clk 0:00:08.9]} 53. c6
{[%clk 0:00:05.2]} 53... Kd5 {[%clk 0:00:07.4]} 54. Kf5 {[%clk 0:00:03.6]} 54...
Kxc6 {[%clk 0:00:06.2]} 55. Kxe5 {[%clk 0:00:02.9]} 55... f3 {[%clk 0:00:06.4]}
56. Be1 {[%clk 0:00:03.4]} 56... Na3 {[%clk 0:00:04.4]} 57. Ke4 {[%clk
0:00:03.1]} 57... Nc4 {[%clk 0:00:03.4]} 58. Kxf3 {[%clk 0:00:02.3]} 58... Kb5
{[%clk 0:00:03.9]} 59. Ke4 {[%clk 0:00:02.8]} 59... Nxa5 {[%clk 0:00:04.5]} 60.
Kd3 {[%clk 0:00:02.9]} 60... Nc4 {[%clk 0:00:04.9]} 61. Kc2 {[%clk 0:00:03.8]}
61... Ka4 {[%clk 0:00:04.8]} 62. Kb1 {[%clk 0:00:03.9]} 62... a5 {[%clk
0:00:04.9]} 63. Bh4 {[%clk 0:00:04.1]} 63... Kb3 {[%clk 0:00:04.7]} 64. Bf6
{[%clk 0:00:04.5]} 64... a4 {[%clk 0:00:04.6]} 65. Kc1 {[%clk 0:00:04.9]} 65...
a3 {[%clk 0:00:04.8]} 66. Kb1 {[%clk 0:00:05.4]} 66... a2+ {[%clk 0:00:05.1]}
67. Kc1 {[%clk 0:00:05.9]} 67... Na3 {[%clk 0:00:05.5]} 68. Bh8 {[%clk
0:00:05.9]} 68... Nc2 {[%clk 0:00:05.2]} 69. Bg7 {[%clk 0:00:06.3]} 69... a1=Q+
{[%clk 0:00:05.5]} 70. Bxa1 {[%clk 0:00:06.8]} 1/2-1/2

[Event "*** SCC Grand Prix: Titled Tuesday Blitz"]
[Site "Chess.com"]
[Date "2020.07.07"]
[Round "6"]
[White "Korchmar_Vasiliy"]
[Black "Maghalashvili"]
[Result "1/2-1/2"]
[WhiteElo "2630"]
[BlackElo "2761"]
[TimeControl "180+1"]
[EndTime "11:08:01 PDT"]
[Termination "Game drawn - insufficient material"]

1. d4 {[%clk 0:03:00.9]} 1... d5 {[%clk 0:02:52.5]} 2. c4 {[%clk 0:03:01.2]}
2... e6 {[%clk 0:02:52.9]} 3. Nf3 {[%clk 0:03:01.5]} 3... Nf6 {[%clk 0:02:53.1]}
4. g3 {[%clk 0:03:02]} 4... Be7 {[%clk 0:02:53.3]} 5. Bg2 {[%clk 0:03:02.5]}
5... O-O {[%clk 0:02:54.2]} 6. O-O {[%clk 0:03:03.2]} 6... dxc4 {[%clk
0:02:54.7]} 7. Ne5 {[%clk 0:03:03.6]} 7... Nc6 {[%clk 0:02:54.1]} 8. Bxc6 {[%clk
0:03:04.2]} 8... bxc6 {[%clk 0:02:55]} 9. Nxc6 {[%clk 0:03:04.9]} 9... Qe8
{[%clk 0:02:55.3]} 10. Nxe7+ {[%clk 0:03:05.8]} 10... Qxe7 {[%clk 0:02:55.6]}
11. Qc2 {[%clk 0:03:06.7]} 11... e5 {[%clk 0:02:55.8]} 12. dxe5 {[%clk
0:03:07.6]} 12... Qxe5 {[%clk 0:02:55.2]} 13. Bf4 {[%clk 0:03:08.2]} 13... Qh5
{[%clk 0:02:52.5]} 14. Nc3 {[%clk 0:03:07.4]} 14... g5 {[%clk 0:02:44.4]} 15.
Bxc7 {[%clk 0:03:07.1]} 15... Ng4 {[%clk 0:02:43.7]} 16. h4 {[%clk 0:03:07.6]}
16... gxh4 {[%clk 0:02:43.8]} 17. Qe4 {[%clk 0:03:05.1]} 17... Bf5 {[%clk
0:02:19.6]} 18. Qf3 {[%clk 0:03:04.1]} 18... Rae8 {[%clk 0:02:07]} 19. Rad1
{[%clk 0:02:45.3]} 19... hxg3 {[%clk 0:01:55.5]} 20. Bxg3 {[%clk 0:02:46.2]}
20... Nf6 {[%clk 0:01:41.5]} 21. Qxh5 {[%clk 0:01:34.8]} 21... Nxh5 {[%clk
0:01:42.4]} 22. Bd6 {[%clk 0:01:35.1]} 22... Re6 {[%clk 0:01:05]} 23. Bxf8
{[%clk 0:01:33.8]} 23... Kxf8 {[%clk 0:01:02.1]} 24. Rd5 {[%clk 0:01:22.2]}
24... Rg6+ {[%clk 0:00:53.1]} 25. Kh2 {[%clk 0:01:20.5]} 25... Rh6 {[%clk
0:00:51.6]} 26. Kg1 {[%clk 0:00:51.2]} 26... Rg6+ {[%clk 0:00:36.8]} 27. Kh2
{[%clk 0:00:51.4]} 27... Rh6 {[%clk 0:00:36.6]} 28. Rxf5 {[%clk 0:00:46.8]}
28... Ng7+ {[%clk 0:00:36.1]} 29. Kg3 {[%clk 0:00:47.3]} 29... Nxf5+ {[%clk
0:00:36.4]} 30. Kf4 {[%clk 0:00:48.2]} 30... Nd6 {[%clk 0:00:34.3]} 31. Ke5
{[%clk 0:00:44.2]} 31... Re6+ {[%clk 0:00:32.8]} 32. Kd5 {[%clk 0:00:43.8]}
32... Kg7 {[%clk 0:00:31.6]} 33. Rg1+ {[%clk 0:00:38.9]} 33... Kf6 {[%clk
0:00:30.2]} 34. Rh1 {[%clk 0:00:39.1]} 34... Kg6 {[%clk 0:00:29.6]} 35. e3
{[%clk 0:00:31.6]} 35... h5 {[%clk 0:00:29.2]} 36. Ne2 {[%clk 0:00:32.2]} 36...
Kg5 {[%clk 0:00:20.8]} 37. Rxh5+ {[%clk 0:00:27.9]} 37... Kxh5 {[%clk
0:00:19.3]} 38. Nf4+ {[%clk 0:00:28.2]} 38... Kg4 {[%clk 0:00:20.2]} 39. Nxe6
{[%clk 0:00:28.7]} 39... Nc8 {[%clk 0:00:16]} 40. Nd4 {[%clk 0:00:28.2]} 40...
Nb6+ {[%clk 0:00:14.5]} 41. Kc5 {[%clk 0:00:27.2]} 41... Na4+ {[%clk 0:00:13.6]}
42. Kxc4 {[%clk 0:00:27.6]} 42... Nxb2+ {[%clk 0:00:14.5]} 43. Kb5 {[%clk
0:00:25.5]} 43... Nd3 {[%clk 0:00:14.2]} 44. f3+ {[%clk 0:00:23.2]} 44... Kg3
{[%clk 0:00:14.5]} 45. a4 {[%clk 0:00:14.5]} 45... Kf2 {[%clk 0:00:13.4]} 46. a5
{[%clk 0:00:14.7]} 46... Kxe3 {[%clk 0:00:12.6]} 47. Nc6 {[%clk 0:00:15.2]}
47... Kxf3 {[%clk 0:00:11.4]} 48. Nxa7 {[%clk 0:00:13.5]} 48... f5 {[%clk
0:00:11.8]} 49. Nc6 {[%clk 0:00:13.5]} 49... Nf4 {[%clk 0:00:09.9]} 50. a6
{[%clk 0:00:07.2]} 50... Nd5 {[%clk 0:00:09.7]} 51. a7 {[%clk 0:00:06.4]} 51...
f4 {[%clk 0:00:09.8]} 52. Kc5 {[%clk 0:00:05]} 52... Nc7 {[%clk 0:00:09.1]} 53.
Kb6 {[%clk 0:00:05.3]} 53... Na8+ {[%clk 0:00:09]} 54. Kb7 {[%clk 0:00:04.8]}
54... Ke4 {[%clk 0:00:09.9]} 55. Kxa8 {[%clk 0:00:02]} 55... f3 {[%clk
0:00:10.2]} 56. Kb7 {[%clk 0:00:02.3]} 56... f2 {[%clk 0:00:09.5]} 57. a8=Q
{[%clk 0:00:03.2]} 57... f1=Q {[%clk 0:00:09.4]} 58. Qe8+ {[%clk 0:00:03.8]}
58... Kf3 {[%clk 0:00:08.1]} 59. Qf7+ {[%clk 0:00:04]} 59... Kg2 {[%clk
0:00:08]} 60. Qg6+ {[%clk 0:00:04.3]} 60... Kf2 {[%clk 0:00:08]} 61. Qf5+ {[%clk
0:00:04.7]} 61... Kg1 {[%clk 0:00:08.1]} 62. Qg4+ {[%clk 0:00:02.8]} 62... Qg2
{[%clk 0:00:09]} 63. Qd4+ {[%clk 0:00:03]} 63... Qf2 {[%clk 0:00:08.8]} 64. Qd1+
{[%clk 0:00:03.3]} 64... Qf1 {[%clk 0:00:08.5]} 65. Qg4+ {[%clk 0:00:03.8]}
65... Qg2 {[%clk 0:00:09.4]} 66. Qb4 {[%clk 0:00:03.8]} 66... Qf3 {[%clk
0:00:08.3]} 67. Kb6 {[%clk 0:00:03.7]} 67... Qf2+ {[%clk 0:00:08]} 68. Nd4
{[%clk 0:00:03.9]} 68... Kg2 {[%clk 0:00:08]} 69. Kc5 {[%clk 0:00:03.4]} 69...
Qf8+ {[%clk 0:00:06.7]} 70. Kc4 {[%clk 0:00:03]} 70... Qxb4+ {[%clk 0:00:06.9]}
71. Kxb4 {[%clk 0:00:03.9]} 1/2-1/2

[Event "*** SCC Grand Prix: Titled Tuesday Blitz"]
[Site "Chess.com"]
[Date "2020.07.07"]
[Round "6"]
[White "sertalzin"]
[Black "PauloCesarCosta_sad"]
[Result "1-0"]
[WhiteElo "2031"]
[BlackElo "2201"]
[TimeControl "180+1"]
[EndTime "11:08:02 PDT"]
[Termination "sertalzin won by checkmate"]

1. d4 {[%clk 0:03:00.9]} 1... d5 {[%clk 0:02:59.3]} 2. c4 {[%clk 0:03:01.1]}
2... c6 {[%clk 0:02:59.3]} 3. Nf3 {[%clk 0:03:00.3]} 3... e6 {[%clk 0:02:59.7]}
4. Qc2 {[%clk 0:02:58.1]} 4... Nf6 {[%clk 0:02:57.5]} 5. g3 {[%clk 0:02:58.5]}
5... Nbd7 {[%clk 0:02:56]} 6. Bg2 {[%clk 0:02:58.9]} 6... Bd6 {[%clk 0:02:55.7]}
7. O-O {[%clk 0:02:59.2]} 7... O-O {[%clk 0:02:55.7]} 8. Nbd2 {[%clk 0:02:56.7]}
8... b6 {[%clk 0:02:53.2]} 9. e4 {[%clk 0:02:54.9]} 9... dxe4 {[%clk 0:02:52.4]}
10. Nxe4 {[%clk 0:02:54.3]} 10... Nxe4 {[%clk 0:02:52.3]} 11. Qxe4 {[%clk
0:02:54.4]} 11... Bb7 {[%clk 0:02:53.2]} 12. Ne5 {[%clk 0:02:48.3]} 12... Nxe5
{[%clk 0:02:11.5]} 13. dxe5 {[%clk 0:02:46.8]} 13... Bc5 {[%clk 0:02:06.6]} 14.
Be3 {[%clk 0:02:38.5]} 14... Bxe3 {[%clk 0:02:06.2]} 15. Qxe3 {[%clk 0:02:37.8]}
15... Qc7 {[%clk 0:02:04.7]} 16. c5 {[%clk 0:02:35.1]} 16... Rad8 {[%clk
0:01:57.4]} 17. Rfd1 {[%clk 0:02:33.4]} 17... h6 {[%clk 0:01:45.9]} 18. b4
{[%clk 0:02:27.9]} 18... Rxd1+ {[%clk 0:01:41.1]} 19. Rxd1 {[%clk 0:02:26.6]}
19... Rd8 {[%clk 0:01:40.6]} 20. Rd6 {[%clk 0:02:26.9]} 20... bxc5 {[%clk
0:01:10.2]} 21. bxc5 {[%clk 0:02:25.6]} 21... Rc8 {[%clk 0:01:02.5]} 22. Qd2
{[%clk 0:02:15.8]} 22... Ba8 {[%clk 0:00:53.1]} 23. Rd7 {[%clk 0:02:09.7]} 23...
Qxe5 {[%clk 0:00:42]} 24. Rd8+ {[%clk 0:02:01]} 24... Rxd8 {[%clk 0:00:40.1]}
25. Qxd8+ {[%clk 0:02:00]} 25... Kh7 {[%clk 0:00:41]} 26. Qxa8 {[%clk
0:01:58.6]} 26... Qxc5 {[%clk 0:00:36.9]} 27. Qxc6 {[%clk 0:01:54.1]} 27... Qa3
{[%clk 0:00:29.8]} 28. Qc2+ {[%clk 0:01:13.9]} 28... g6 {[%clk 0:00:25.9]} 29.
h4 {[%clk 0:01:13.6]} 29... h5 {[%clk 0:00:23.7]} 30. Kh2 {[%clk 0:00:59.8]}
30... a5 {[%clk 0:00:23.1]} 31. Qb3 {[%clk 0:00:58.9]} 31... Qc5 {[%clk
0:00:17.4]} 32. Qf3 {[%clk 0:00:49]} 32... Kg7 {[%clk 0:00:15.3]} 33. a3 {[%clk
0:00:47.5]} 33... Qe5 {[%clk 0:00:13.6]} 34. Qe3 {[%clk 0:00:46.9]} 34... Qb2
{[%clk 0:00:10.8]} 35. a4 {[%clk 0:00:43.7]} 35... Qb4 {[%clk 0:00:10]} 36. Bc6
{[%clk 0:00:40.9]} 36... Qb2 {[%clk 0:00:06.9]} 37. Qf3 {[%clk 0:00:38.5]} 37...
Qb4 {[%clk 0:00:05.5]} 38. Be8 {[%clk 0:00:37.4]} 38... Qf8 {[%clk 0:00:04.5]}
39. Bb5 {[%clk 0:00:35.1]} 39... Qb4 {[%clk 0:00:03.5]} 40. Be8 {[%clk
0:00:33.2]} 40... Qe7 {[%clk 0:00:03.4]} 41. Qc3+ {[%clk 0:00:32.5]} 41... Kg8
{[%clk 0:00:03.3]} 42. Bb5 {[%clk 0:00:31.2]} 42... Qd8 {[%clk 0:00:02.8]} 43.
Qc6 {[%clk 0:00:25.3]} 43... Qe7 {[%clk 0:00:02.7]} 44. Qe8+ {[%clk 0:00:24.6]}
44... Qxe8 {[%clk 0:00:02.3]} 45. Bxe8 {[%clk 0:00:24.9]} 45... Kf8 {[%clk
0:00:03.2]} 46. Bb5 {[%clk 0:00:24.7]} 46... Ke7 {[%clk 0:00:04.1]} 47. f4
{[%clk 0:00:24.6]} 47... f6 {[%clk 0:00:03.9]} 48. Kg2 {[%clk 0:00:24.9]} 48...
e5 {[%clk 0:00:04.8]} 49. Kf3 {[%clk 0:00:25.1]} 49... exf4 {[%clk 0:00:04.9]}
50. gxf4 {[%clk 0:00:21]} 50... Ke6 {[%clk 0:00:05.3]} 51. Ke4 {[%clk
0:00:20.8]} 51... g5 {[%clk 0:00:05.5]} 52. fxg5 {[%clk 0:00:14.9]} 52... fxg5
{[%clk 0:00:04.4]} 53. hxg5 {[%clk 0:00:14.3]} 53... h4 {[%clk 0:00:05.3]} 54.
Kf4 {[%clk 0:00:10.5]} 54... h3 {[%clk 0:00:05.3]} 55. Kg4 {[%clk 0:00:06]}
55... h2 {[%clk 0:00:05]} 56. Bc6 {[%clk 0:00:06]} 56... Kf7 {[%clk 0:00:03.9]}
57. Bh1 {[%clk 0:00:05.5]} 57... Kg6 {[%clk 0:00:04.2]} 58. Kf4 {[%clk
0:00:05.4]} 58... Kf7 {[%clk 0:00:03.9]} 59. Kf5 {[%clk 0:00:05.5]} 59... Kg7
{[%clk 0:00:04.4]} 60. g6 {[%clk 0:00:04.7]} 60... Kf8 {[%clk 0:00:04.1]} 61.
Kf6 {[%clk 0:00:04.3]} 61... Kg8 {[%clk 0:00:05]} 62. g7 {[%clk 0:00:03.4]}
62... Kh7 {[%clk 0:00:03.6]} 63. Kf7 {[%clk 0:00:03.1]} 63... Kh6 {[%clk
0:00:04.5]} 64. g8=Q {[%clk 0:00:03.5]} 64... Kh5 {[%clk 0:00:05.4]} 65. Kf6
{[%clk 0:00:03.7]} 65... Kh4 {[%clk 0:00:06.3]} 66. Kf5 {[%clk 0:00:04]} 66...
Kh3 {[%clk 0:00:07.2]} 67. Kf4 {[%clk 0:00:03.7]} 67... Kh4 {[%clk 0:00:08.1]}
68. Qg4# {[%clk 0:00:03.4]} 1-0

[Event "*** SCC Grand Prix: Titled Tuesday Blitz"]
[Site "Chess.com"]
[Date "2020.07.07"]
[Round "6"]
[White "vesalhamedinia"]
[Black "XiaoKangZhong"]
[Result "1/2-1/2"]
[WhiteElo "2221"]
[BlackElo "2395"]
[TimeControl "180+1"]
[EndTime "11:08:09 PDT"]
[Termination "Game drawn by stalemate"]

1. d4 {[%clk 0:03:00.9]} 1... Nf6 {[%clk 0:02:58.5]} 2. c4 {[%clk 0:02:58.8]}
2... g6 {[%clk 0:02:56.9]} 3. Nc3 {[%clk 0:02:58.3]} 3... d5 {[%clk 0:02:56.7]}
4. Bf4 {[%clk 0:02:56.3]} 4... Bg7 {[%clk 0:02:55.8]} 5. e3 {[%clk 0:02:55.9]}
5... O-O {[%clk 0:02:55.6]} 6. cxd5 {[%clk 0:02:55.8]} 6... Nxd5 {[%clk
0:02:54.8]} 7. Nxd5 {[%clk 0:02:56.7]} 7... Qxd5 {[%clk 0:02:55.1]} 8. Bxc7
{[%clk 0:02:57.6]} 8... Nc6 {[%clk 0:02:44.5]} 9. Nf3 {[%clk 0:02:53.9]} 9...
Bg4 {[%clk 0:02:43]} 10. Be2 {[%clk 0:02:53.7]} 10... Rac8 {[%clk 0:02:42.8]}
11. Bg3 {[%clk 0:02:49.8]} 11... Qa5+ {[%clk 0:02:41.5]} 12. Nd2 {[%clk
0:02:36.6]} 12... Bxe2 {[%clk 0:02:32]} 13. Qxe2 {[%clk 0:02:37.5]} 13... Bxd4
{[%clk 0:02:32.3]} 14. O-O {[%clk 0:02:18.9]} 14... Bg7 {[%clk 0:02:30.2]} 15.
Nb3 {[%clk 0:02:09.7]} 15... Qb6 {[%clk 0:02:21]} 16. Rac1 {[%clk 0:02:02.6]}
16... Nb4 {[%clk 0:02:14.6]} 17. a3 {[%clk 0:01:53.9]} 17... Nd5 {[%clk
0:02:05.8]} 18. Qd3 {[%clk 0:01:40.4]} 18... e6 {[%clk 0:02:01.5]} 19. Nd4
{[%clk 0:01:07.1]} 19... Qxb2 {[%clk 0:01:40.1]} 20. Rb1 {[%clk 0:01:00.3]}
20... Qc3 {[%clk 0:01:29.4]} 21. Qe4 {[%clk 0:00:51.4]} 21... Bxd4 {[%clk
0:01:07.6]} 22. exd4 {[%clk 0:00:49.3]} 22... Qc6 {[%clk 0:01:07.9]} 23. Be5
{[%clk 0:00:46.6]} 23... f6 {[%clk 0:01:00.9]} 24. Bg3 {[%clk 0:00:39.6]} 24...
Rf7 {[%clk 0:00:58.2]} 25. Rfe1 {[%clk 0:00:29.3]} 25... Nc3 {[%clk 0:00:55.8]}
26. Qxc6 {[%clk 0:00:27.6]} 26... Rxc6 {[%clk 0:00:56.6]} 27. Rb3 {[%clk
0:00:17]} 27... Ne2+ {[%clk 0:00:56]} 28. Kf1 {[%clk 0:00:17.3]} 28... Nxg3+
{[%clk 0:00:56.9]} 29. hxg3 {[%clk 0:00:16.9]} 29... Rd7 {[%clk 0:00:57.4]} 30.
Re4 {[%clk 0:00:10.2]} 30... Kf7 {[%clk 0:00:56.4]} 31. Ke2 {[%clk 0:00:10.3]}
31... Rdc7 {[%clk 0:00:52.8]} 32. Ree3 {[%clk 0:00:08.6]} 32... Rc4 {[%clk
0:00:48]} 33. Red3 {[%clk 0:00:08.2]} 33... Rd7 {[%clk 0:00:47.2]} 34. Ke3
{[%clk 0:00:08.5]} 34... Ra4 {[%clk 0:00:47.3]} 35. f4 {[%clk 0:00:08.2]} 35...
Ra5 {[%clk 0:00:47.4]} 36. g4 {[%clk 0:00:08.1]} 36... h5 {[%clk 0:00:45.3]} 37.
gxh5 {[%clk 0:00:08.3]} 37... Rxh5 {[%clk 0:00:46.2]} 38. g3 {[%clk 0:00:08.5]}
38... Rh2 {[%clk 0:00:42.3]} 39. Kf3 {[%clk 0:00:07.7]} 39... a6 {[%clk
0:00:41.6]} 40. Rbc3 {[%clk 0:00:06.6]} 40... Rh5 {[%clk 0:00:39.2]} 41. Rc8
{[%clk 0:00:06.1]} 41... Rhd5 {[%clk 0:00:38]} 42. Ke3 {[%clk 0:00:05.8]} 42...
Rd8 {[%clk 0:00:38.1]} 43. Rc7+ {[%clk 0:00:05.4]} 43... R5d7 {[%clk 0:00:38.2]}
44. Rc4 {[%clk 0:00:05.4]} 44... b5 {[%clk 0:00:38.3]} 45. Rc6 {[%clk 0:00:05]}
45... Rd6 {[%clk 0:00:38.8]} 46. Rc7+ {[%clk 0:00:05.3]} 46... R8d7 {[%clk
0:00:39.4]} 47. Rc8 {[%clk 0:00:05.7]} 47... g5 {[%clk 0:00:35.7]} 48. fxg5
{[%clk 0:00:03.8]} 48... fxg5 {[%clk 0:00:36.6]} 49. Ke4 {[%clk 0:00:04.1]}
49... Kg7 {[%clk 0:00:33.2]} 50. Re8 {[%clk 0:00:03]} 50... a5 {[%clk
0:00:31.5]} 51. Rb8 {[%clk 0:00:02.7]} 51... Rd5 {[%clk 0:00:30.4]} 52. Rb6
{[%clk 0:00:02.9]} 52... Kf6 {[%clk 0:00:27.6]} 53. Rf3+ {[%clk 0:00:02.5]}
53... Ke7 {[%clk 0:00:28]} 54. Rd3 {[%clk 0:00:03.4]} 54... Rf5 {[%clk
0:00:23.9]} 55. Ra6 {[%clk 0:00:02.5]} 55... b4 {[%clk 0:00:23.4]} 56. axb4
{[%clk 0:00:02.5]} 56... axb4 {[%clk 0:00:24.1]} 57. Rb6 {[%clk 0:00:03.4]}
57... Kf6 {[%clk 0:00:18.9]} 58. Rxb4 {[%clk 0:00:03.7]} 58... g4 {[%clk
0:00:19.4]} 59. Rb6 {[%clk 0:00:03.6]} 59... Rdd5 {[%clk 0:00:17.7]} 60. Rb8
{[%clk 0:00:02.7]} 60... Rd7 {[%clk 0:00:15.9]} 61. Rf8+ {[%clk 0:00:02.1]}
61... Rf7 {[%clk 0:00:16.1]} 62. Rxf7+ {[%clk 0:00:01.3]} 62... Kxf7 {[%clk
0:00:17]} 63. d5 {[%clk 0:00:01.7]} 63... Kf6 {[%clk 0:00:14]} 64. dxe6 {[%clk
0:00:01.8]} 64... Re5+ {[%clk 0:00:13.8]} 65. Kf4 {[%clk 0:00:01.7]} 65... Rxe6
{[%clk 0:00:14.3]} 66. Kxg4 {[%clk 0:00:02.6]} 66... Re4+ {[%clk 0:00:13.6]} 67.
Kf3 {[%clk 0:00:02.8]} 67... Re6 {[%clk 0:00:12.3]} 68. Rd4 {[%clk 0:00:03.1]}
68... Kg6 {[%clk 0:00:12.6]} 69. Rf4 {[%clk 0:00:04]} 69... Rd6 {[%clk
0:00:12.5]} 70. g4 {[%clk 0:00:04.9]} 70... Re6 {[%clk 0:00:13.1]} 71. Rf5
{[%clk 0:00:05]} 71... Ra6 {[%clk 0:00:13.3]} 72. Rf4 {[%clk 0:00:05.9]} 72...
Ra5 {[%clk 0:00:13.4]} 73. Ke4 {[%clk 0:00:06.5]} 73... Ra4+ {[%clk 0:00:13.5]}
74. Kf3 {[%clk 0:00:07.4]} 74... Rxf4+ {[%clk 0:00:13.6]} 75. Kxf4 {[%clk
0:00:07.6]} 75... Kf6 {[%clk 0:00:14.5]} 76. g5+ {[%clk 0:00:07.7]} 76... Kg6
{[%clk 0:00:15.4]} 77. Kg4 {[%clk 0:00:08.6]} 77... Kg7 {[%clk 0:00:16]} 78. Kf5
{[%clk 0:00:09.5]} 78... Kf7 {[%clk 0:00:16.6]} 79. g6+ {[%clk 0:00:10.4]} 79...
Kg7 {[%clk 0:00:17.1]} 80. Kg5 {[%clk 0:00:11.3]} 80... Kg8 {[%clk 0:00:17.7]}
81. Kf6 {[%clk 0:00:12.2]} 81... Kf8 {[%clk 0:00:18.2]} 82. g7+ {[%clk
0:00:12.7]} 82... Kg8 {[%clk 0:00:18.7]} 83. Kg6 {[%clk 0:00:13.6]} 1/2-1/2